bitfinex/quotes_ETHUSD_20240608
["timestamp","ask_amount","ask_price","bid_price","bid_amount"]
[1717876323419,1.62066086,3684.4,3683.9,0.59848623]
[1717876323717,1.62066086,3684.4,3683.8,2.4113]
[1717876323924,1.62066086,3684.4,3684.0,0.59842885]
[1717876324098,1.62066086,3684.4,3683.8,2.4113]
[1717876324299,1.62066086,3684.4,3684.1,0.59837147]
[1717876324484,1.62066086,3684.4,3683.8,2.4113]
[1717876324691,1.62066086,3684.4,3684.2,0.5983141]
[1717876324915,1.62066086,3684.4,3683.8,2.4113]
[1717876325112,1.62066086,3684.4,3684.3,0.59825673]
[1717876325321,1.62066086,3684.4,3683.8,2.4113]
[1717876325522,1.62066086,3684.4,3684.3,0.59825673]
[1717876325684,1.62066086,3684.4,3683.8,2.4113]
[1717876325685,2.28290007,3684.4,3683.8,2.4113]
[1717876325887,1.62066086,3684.4,3684.3,0.59825673]
[1717876326085,1.62066086,3684.4,3683.8,2.4113]
[1717876326322,1.62066086,3684.4,3684.3,0.59825673]
[1717876326526,1.62066086,3684.4,3683.8,2.4113]
[1717876326892,1.62066086,3684.4,3683.9,0.59848623]
[1717876327093,1.62066086,3684.4,3683.8,2.4113]
[1717876327298,1.62066086,3684.4,3684.0,0.59842885]
[1717876327526,1.62066086,3684.4,3683.8,2.4113]
[1717876327727,1.62066086,3684.4,3684.1,0.59837147]
[1717876328053,1.62066086,3684.4,3684.2,0.5983141]
[1717876328213,1.62066086,3684.4,3683.8,2.4113]
[1717876328418,1.62066086,3684.4,3683.9,0.59848623]
[1717876328622,1.62066086,3684.4,3683.8,2.4113]
[1717876328927,1.62066086,3684.4,3683.9,0.59848623]
[1717876329290,1.62066086,3684.4,3683.8,2.4113]
[1717876329495,1.62066086,3684.3,3684.0,0.59842885]
[1717876329696,1.62066086,3684.3,3683.8,2.4113]
[1717876329932,1.62066086,3684.3,3684.1,0.59837147]
[1717876330126,1.62066086,3684.4,3683.8,2.4113]
[1717876330329,1.62066086,3684.4,3684.2,0.5983141]
[1717876330515,2.28290007,3684.4,3683.8,2.4113]
[1717876330731,1.62066086,3684.4,3684.3,0.59825673]
[1717876330911,1.62066086,3684.4,3683.8,2.4113]
[1717876331103,1.62066086,3684.4,3684.3,0.59825673]
[1717876331310,2.28771129,3684.5,3683.8,2.4113]
[1717876331516,1.62037163,3684.3,3683.8,2.4113]
[1717876333647,1.62037163,3684.3,3683.9,0.5985109]
[1717876333939,1.62037163,3684.3,3683.8,2.4113]
[1717876334101,1.62037163,3684.3,3684.0,0.59845352]
[1717876334301,1.62037163,3684.3,3683.8,2.4113]
[1717876334502,1.62037163,3684.3,3684.1,0.59839614]
[1717876334821,1.62037163,3684.3,3684.2,0.59833877]
[1717876335024,1.62037163,3684.3,3683.8,2.4113]
[1717876335411,1.62037163,3684.3,3683.9,0.5985109]
[1717876335612,1.62037163,3684.3,3683.8,2.4113]
[1717876335807,1.62037163,3684.3,3684.2,2.3834]
[1717876336006,1.62037163,3684.6,3684.2,2.98173877]
[1717876336212,1.62037163,3684.8,3684.4,0.723]
[1717876336409,1.62037163,3684.8,3684.5,0.59816666]
[1717876337830,4.41490082,3685.0,3684.6,0.723]
[1717876337831,2.2069121,3684.9,3684.6,0.723]
[1717876338031,4.41490082,3685.0,3684.6,0.723]
[1717876338032,4.33410163,3685.0,3684.7,0.59793686]
[1717876338230,2.71373,3685.0,3684.7,0.59793686]
[1717876338844,2.71373,3685.0,3684.6,0.723]
[1717876339015,2.71373,3685.0,3684.8,0.59787951]
[1717876339213,2.71373,3685.0,3684.6,0.723]
[1717876339541,2.71373,3685.0,3684.7,0.59793686]
[1717876340447,2.71373,3685.0,3684.6,0.723]
[1717876340648,2.71373,3685.0,3684.8,0.59787951]
[1717876340851,2.71373,3685.0,3684.6,0.723]
[1717876341030,2.71373,3685.0,3684.9,0.59782216]
[1717876341218,2.71373,3685.0,3684.6,0.723]
[1717876341417,2.71373,3685.0,3684.7,0.59793686]
[1717876341630,2.71373,3685.0,3684.6,0.723]
[1717876341818,2.71373,3685.0,3684.7,0.59793686]
[1717876342030,2.71373,3685.0,3684.6,0.723]
[1717876342250,2.71373,3685.0,3684.7,0.59793686]
[1717876342449,2.71373,3685.0,3684.6,0.723]
[1717876342756,2.71373,3685.0,3684.8,0.59787951]
[1717876342952,2.71373,3685.0,3684.7,0.59793686]
[1717876343131,2.71373,3685.0,3684.6,0.723]
[1717876343331,2.71373,3685.0,3684.8,0.59769867]
[1717876343524,2.71373,3685.0,3684.6,0.723]
[1717876343725,2.71373,3685.0,3684.9,0.59764132]
[1717876344057,2.71373,3685.0,3684.6,0.723]
[1717876344253,2.71373,3685.0,3684.9,0.59764132]
[1717876344434,2.71373,3685.0,3684.6,0.723]
[1717876344618,2.71373,3685.0,3684.9,0.59764132]
[1717876344820,2.71373,3685.0,3684.6,0.723]
[1717876345021,2.71373,3685.0,3684.7,0.59775603]
[1717876345351,2.71373,3685.0,3684.6,0.723]
[1717876345653,2.71373,3685.0,3684.7,0.59775603]
[1717876345852,2.71373,3685.0,3684.6,0.723]
[1717876346070,2.71373,3685.0,3684.8,0.59769867]
[1717876346256,2.71373,3685.0,3684.6,0.723]
[1717876346439,2.71373,3685.0,3684.9,0.59764132]
[1717876346641,2.71373,3685.0,3684.6,0.723]
[1717876346956,2.71373,3685.0,3684.9,0.59764132]
[1717876347150,2.71373,3685.0,3684.6,0.723]
[1717876347455,2.71373,3685.0,3684.7,0.59775603]
[1717876347747,2.71373,3685.0,3684.6,0.723]
[1717876348151,2.71373,3685.0,3684.7,0.59775603]
[1717876348654,2.71373,3685.0,3684.6,0.723]
[1717876348850,2.71373,3685.0,3684.8,0.59769867]
[1717876349054,2.71373,3685.0,3684.6,0.723]
[1717876349243,2.71373,3685.0,3684.9,0.59764132]
[1717876349441,2.71373,3685.0,3684.6,0.723]
[1717876349622,2.71373,3685.0,3684.9,0.59764132]
[1717876349823,2.71373,3685.0,3684.6,0.723]
[1717876350023,2.71373,3685.0,3684.7,0.59775603]
[1717876350258,2.71373,3685.0,3684.6,0.723]
[1717876350459,2.71373,3685.0,3684.8,0.59769867]
[1717876350663,2.71373,3685.0,3684.6,0.723]
[1717876350826,2.71373,3685.0,3684.9,0.59764132]
[1717876351026,2.71373,3685.0,3684.6,0.723]
[1717876351354,2.71373,3685.0,3684.7,0.59775603]
[1717876351659,2.71373,3685.0,3684.6,0.723]
[1717876351861,2.71373,3685.0,3684.8,0.59769867]
[1717876352026,2.71373,3685.0,3684.6,0.723]
[1717876352226,2.71373,3685.0,3684.7,0.59775603]
[1717876352451,2.71373,3685.0,3684.6,0.723]
[1717876352652,2.71373,3685.0,3684.8,0.59769867]
[1717876352859,2.71373,3685.0,3684.6,0.723]
[1717876353060,2.71373,3685.0,3684.9,0.59764542]
[1717876353262,2.71373,3685.0,3684.6,0.723]
[1717876353563,2.71373,3685.0,3684.9,0.59764542]
[1717876353755,2.71373,3685.0,3684.6,0.723]
[1717876354095,2.71373,3685.0,3684.7,0.59776013]
[1717876354276,2.71373,3685.0,3684.6,0.723]
[1717876354426,2.71373,3685.0,3684.8,0.59770277]
[1717876354630,2.71373,3685.0,3684.6,0.723]
[1717876354869,2.71373,3685.0,3684.7,0.59776013]
[1717876355074,2.71373,3685.0,3684.6,0.723]
[1717876355259,2.71373,3685.0,3684.8,0.59770277]
[1717876355581,2.71373,3685.0,3684.6,0.723]
[1717876355943,2.71373,3685.0,3684.7,0.59776013]
[1717876356141,2.71373,3685.0,3684.6,0.723]
[1717876356370,2.71373,3685.0,3684.8,0.59770277]
[1717876356552,2.71373,3685.0,3684.7,0.59776013]
[1717876356757,2.71373,3685.0,3684.6,0.723]
[1717876357073,2.71373,3685.0,3684.7,0.59776013]
[1717876357376,2.71373,3685.0,3684.6,0.723]
[1717876357751,2.71373,3685.0,3684.7,0.59776013]
[1717876358274,2.71373,3685.0,3684.6,0.723]
[1717876358469,2.71373,3685.0,3684.8,0.59770277]
[1717876358675,2.71373,3685.0,3684.6,0.723]
[1717876358877,2.71373,3685.0,3684.9,0.59764542]
[1717876359037,3.20580718,3685.0,3684.6,0.723]
[1717876359238,2.71373,3685.0,3684.7,0.59776013]
[1717876359638,2.71373,3685.0,3684.6,0.723]
[1717876359836,2.71373,3685.0,3684.7,0.59776013]
[1717876360271,2.71373,3685.0,3684.6,0.723]
[1717876360475,2.71373,3685.0,3684.8,0.59770277]
[1717876360693,2.71373,3685.0,3684.6,0.723]
[1717876360980,2.71373,3685.0,3684.9,0.59764542]
[1717876361289,2.71373,3685.0,3684.6,0.723]
[1717876361490,2.71373,3685.0,3684.9,0.59764542]
[1717876361668,2.71373,3685.0,3684.6,0.723]
[1717876361872,2.71373,3685.0,3684.9,0.59764542]
[1717876362177,2.71373,3685.0,3684.6,0.723]
[1717876362585,2.71373,3685.0,3684.7,0.59776013]
[1717876362881,2.71373,3685.0,3684.6,0.723]
[1717876363058,2.71373,3685.0,3684.8,0.59767401]
[1717876363258,2.71373,3685.0,3684.6,0.723]
[1717876363471,2.71373,3685.0,3684.9,0.59761666]
[1717876363668,4.33423826,3685.0,3684.6,0.723]
[1717876363977,4.33423826,3685.0,3684.9,0.59757245]
[1717876364158,4.33423826,3685.0,3684.6,0.723]
[1717876364691,4.33423826,3685.0,3684.7,0.59768716]
[1717876364843,4.33423826,3685.0,3684.6,0.723]
[1717876365049,4.33423826,3685.0,3684.7,0.59768716]
[1717876365249,1.62050826,3684.9,3684.6,0.723]
[1717876365541,1.62050826,3684.9,3684.7,0.59768716]
[1717876365955,1.62050826,3684.9,3684.6,0.723]
[1717876366171,1.62050826,3684.8,3684.6,0.723]
[1717876366358,1.62050826,3684.8,3684.7,0.59768716]
[1717876366568,1.62050826,3684.9,3684.7,0.59768716]
[1717876366771,1.62050826,3684.9,3684.6,0.723]
[1717876367284,1.62050826,3684.9,3684.7,0.59768716]
[1717876367443,1.62050826,3684.9,3684.6,0.723]
[1717876367444,1.62050588,3684.9,3684.6,0.723]
[1717876367645,1.62050588,3684.9,3684.7,0.59768716]
[1717876367882,1.62050588,3684.9,3684.6,0.723]
[1717876368181,1.62050588,3684.9,3684.8,0.5976298]
[1717876368374,1.62050588,3684.9,3684.7,0.59768716]
[1717876368681,1.62050588,3684.9,3684.6,0.723]
[1717876368845,1.62050588,3684.9,3684.8,0.5976298]
[1717876369047,1.62050588,3684.9,3684.6,0.723]
[1717876369259,1.62050588,3684.9,3684.7,0.59768716]
[1717876369500,1.62050588,3684.9,3684.6,0.723]
[1717876369656,1.62050588,3684.9,3684.8,0.5976298]
[1717876369856,1.62050588,3684.9,3684.6,0.723]
[1717876370059,1.62050588,3684.9,3684.8,0.5976298]
[1717876370367,1.62050588,3684.9,3684.6,0.723]
[1717876370686,1.62050588,3684.9,3684.7,0.59768716]
[1717876370866,1.62050588,3684.9,3684.6,0.723]
[1717876371065,1.62050588,3684.9,3684.8,0.5976298]
[1717876371270,1.62050588,3684.9,3684.6,0.723]
[1717876371464,1.62050588,3684.9,3684.8,0.5976298]
[1717876371669,1.62050588,3684.9,3684.6,0.723]
[1717876371857,1.62050588,3684.9,3684.8,0.5976298]
[1717876372057,1.62050588,3684.9,3684.6,0.723]
[1717876372258,1.62050588,3684.9,3684.8,0.5976298]
[1717876372462,1.62050588,3684.9,3684.6,0.723]
[1717876372669,1.62050588,3684.9,3684.8,0.5976298]
[1717876372863,1.62050588,3684.9,3684.6,0.723]
[1717876373081,1.62050588,3684.9,3684.8,0.59761747]
[1717876373289,1.62050588,3684.9,3684.6,0.723]
[1717876373624,1.62050588,3684.9,3684.8,0.59761747]
[1717876373895,1.62050588,3684.9,3684.6,0.723]
[1717876374071,1.62050588,3684.9,3684.8,0.59761747]
[1717876374389,1.62050588,3684.9,3684.6,0.723]
[1717876374789,4.33423588,3685.0,3684.7,0.59767482]
[1717876375003,1.62050588,3684.9,3684.7,0.59767482]
[1717876375165,4.33423588,3685.0,3684.6,0.723]
[1717876375365,4.33423588,3685.0,3684.6,1.03364]
[1717876375570,4.33423588,3685.0,3684.7,0.59767482]
[1717876375974,4.33423588,3685.0,3684.6,1.03364]
[1717876376490,4.33423588,3685.0,3684.7,0.59767482]
[1717876376694,4.33423588,3685.0,3684.6,1.03364]
[1717876376854,4.33423588,3685.0,3684.8,0.59761747]
[1717876377055,4.33423588,3685.0,3684.6,0.723]
[1717876377285,4.33423588,3685.0,3684.9,0.59756012]
[1717876377508,4.33423588,3685.0,3684.6,0.723]
[1717876377674,4.33423588,3685.0,3684.9,0.59756012]
[1717876377969,4.33423588,3685.0,3684.6,0.723]
[1717876378374,4.33393768,3685.0,3684.7,0.59767482]
[1717876378673,4.33393768,3685.0,3684.6,0.723]
[1717876378873,4.33393768,3685.0,3684.8,0.59761747]
[1717876379075,4.33393768,3685.0,3684.6,1.03364]
[1717876379310,4.33393768,3685.0,3684.9,0.59756012]
[1717876379525,4.33393768,3685.0,3684.6,0.723]
[1717876379681,4.33393768,3685.0,3684.9,0.59756012]
[1717876379880,4.33393768,3685.0,3684.6,0.723]
[1717876380094,4.33393768,3685.0,3684.9,0.59756012]
[1717876380413,4.33393768,3685.0,3684.6,0.723]
[1717876380414,4.33391537,3685.0,3684.6,0.723]
[1717876380806,4.33391537,3685.0,3684.7,0.59767482]
[1717876381206,4.33391537,3685.0,3684.6,0.723]
[1717876381712,4.33391537,3685.0,3684.7,0.59767482]
[1717876381927,4.33391537,3685.0,3684.6,0.723]
[1717876382094,4.33391537,3685.0,3684.8,0.59761747]
[1717876382297,4.33391537,3685.0,3684.6,0.723]
[1717876382526,4.33391537,3685.0,3684.9,0.59756012]
[1717876382818,4.33391537,3685.0,3684.6,0.723]
[1717876383123,4.33391537,3685.0,3684.7,0.59765839]
[1717876383326,4.33391537,3685.0,3684.6,0.723]
[1717876383490,4.33391537,3685.0,3684.8,0.59760103]
[1717876383823,4.33391537,3685.0,3684.6,0.723]
[1717876384196,4.33391537,3685.0,3684.7,0.59765839]
[1717876384616,4.33391537,3685.0,3684.6,0.723]
[1717876384933,4.33391537,3685.0,3684.7,0.59765839]
[1717876385279,4.33391537,3685.0,3684.8,0.723]
[1717876385485,4.33391537,3685.0,3684.8,1.32060103]
[1717876385728,1.62018537,3685.0,3684.8,1.32060103]
[1717876388027,1.62041119,3685.0,3684.8,1.32060103]
[1717876389029,1.62041119,3685.0,3684.8,1.72206513]
[1717876389235,1.62041119,3685.1,3684.8,1.72206513]
[1717876389536,2.28727039,3685.3,3685.0,0.723]
[1717876389537,2.20683612,3685.3,3685.0,0.723]
[1717876390641,1.62041119,3685.3,3685.0,0.723]
[1717876393318,1.62041119,3685.3,3684.8,2.3385]
[1717876393536,1.62041119,3685.3,3685.1,0.59730159]
[1717876393741,1.62041119,3685.3,3684.9,0.723]
[1717876394109,1.6205496,3685.3,3685.0,0.59735894]
[1717876394344,4.3339896,3685.4,3685.0,0.59735894]
[1717876396447,1.6205496,3685.3,3684.3,2.3385]
[1717876396656,1.6205496,3685.3,3684.8,0.723]
[1717876397015,1.6205496,3685.3,3684.9,0.59732177]
[1717876397464,1.6205496,3685.3,3684.8,0.723]
[1717876397751,1.6205496,3685.3,3684.9,0.59732177]
[1717876397957,1.6205046,3685.3,3684.8,0.723]
[1717876398112,1.6205046,3685.3,3685.0,0.59726442]
[1717876398457,1.6205046,3685.3,3684.8,0.723]
[1717876398647,1.6205046,3685.3,3685.1,0.59720707]
[1717876398812,1.6205046,3685.3,3684.8,0.723]
[1717876399136,1.6205046,3685.3,3684.9,0.5972951]
[1717876399332,1.6205046,3685.3,3684.8,0.723]
[1717876399533,1.6205046,3685.3,3685.0,0.59723775]
[1717876399747,1.6205046,3685.3,3684.4,0.505274]
[1717876399907,4.3340546,3685.2,3685.1,0.59718041]
[1717876400108,4.3340546,3685.2,3684.4,0.723]
[1717876400109,5.18655,3685.2,3684.4,0.723]
[1717876400349,1.620435,3685.0,3684.4,0.723]
[1717876400556,1.620435,3685.0,3684.5,0.577574]
[1717876401250,2.20682842,3685.1,3684.5,0.577574]
[1717876401571,1.620435,3685.1,3684.5,0.577574]
[1717876407248,1.620435,3685.1,3684.6,0.723]
[1717876408622,1.620435,3685.1,3684.7,0.59740981]
[1717876413351,5.18655,3685.2,3684.7,0.59740981]
[1717876413556,2.20693837,3685.1,3684.7,0.59740981]
[1717876414161,1.62050331,3685.1,3684.7,0.59740981]
[1717876418926,1.62050331,3685.1,3684.5,0.723]
[1717876419122,1.62050331,3685.1,3684.8,0.59742232]
[1717876419326,1.62050331,3685.1,3684.5,0.723]
[1717876419562,1.62050331,3685.1,3684.9,0.59736497]
[1717876419757,1.62050331,3685.1,3684.5,0.723]
[1717876419962,1.62050331,3685.1,3684.6,0.59753703]
[1717876420260,2.20693837,3685.1,3684.5,0.723]
[1717876420465,1.62050331,3685.1,3684.7,0.59747967]
[1717876420784,1.62050331,3685.1,3684.8,0.59742232]
[1717876420785,2.20693837,3685.1,3684.8,0.59742232]
[1717876421295,2.20693837,3685.1,3684.5,0.723]
[1717876421433,2.20693837,3685.1,3684.9,0.59736497]
[1717876421634,2.20693837,3685.1,3684.5,0.723]
[1717876421833,1.62050331,3685.1,3685.0,0.59730762]
[1717876422034,2.20693837,3685.1,3684.5,0.723]
[1717876422235,1.62050331,3685.1,3685.0,0.59730762]
[1717876422579,2.20693837,3685.1,3684.5,0.723]
[1717876422789,2.20693837,3685.1,3684.6,0.59753703]
[1717876422947,2.20693837,3685.1,3684.5,1.300574]
[1717876423277,2.20693837,3685.1,3684.6,0.59753703]
[1717876423576,2.20693837,3685.1,3684.5,1.300574]
[1717876424077,2.20693837,3685.1,3684.6,3.07283703]
[1717876424280,1.62050331,3685.1,3684.6,3.51017813]
[1717876425656,1.62050331,3685.0,3684.6,3.51017813]
[1717876426000,1.62042023,3685.0,3684.6,3.51017813]
[1717876427294,1.62041417,3685.0,3684.6,3.51017813]
[1717876430714,1.62041417,3685.0,3684.7,0.723]
[1717876431115,1.62041417,3685.0,3684.8,0.59736479]
[1717876431509,1.62041417,3685.0,3684.7,0.723]
[1717876431721,1.62041417,3685.0,3684.9,0.59730743]
[1717876431906,1.62041417,3685.0,3684.8,0.59736479]
[1717876432081,1.62041417,3685.0,3684.9,0.59730743]
[1717876432403,1.62041417,3685.0,3684.7,0.723]
[1717876432713,1.62041417,3685.0,3684.9,0.59730743]
[1717876433179,1.62041417,3685.0,3684.7,0.723]
[1717876433380,1.62041417,3685.0,3684.8,0.59736479]
[1717876433602,1.62041417,3685.0,3684.7,0.723]
[1717876433791,1.62041417,3685.0,3684.9,0.59730743]
[1717876433989,1.62041417,3685.0,3684.7,0.723]
[1717876434192,1.62041417,3685.0,3684.8,0.59736479]
[1717876434387,1.62041417,3685.0,3684.7,0.723]
[1717876434587,1.62041417,3685.0,3684.8,0.59736479]
[1717876434909,1.62041417,3685.0,3684.7,0.723]
[1717876435116,1.62041417,3685.0,3684.9,0.59730743]
[1717876435715,1.62041417,3685.0,3684.7,0.723]
[1717876435899,1.62041417,3685.0,3684.9,0.59730743]
[1717876436089,1.62041417,3685.0,3684.8,0.59736479]
[1717876436290,1.62041417,3685.0,3684.9,0.59730743]
[1717876436818,1.62049951,3685.0,3684.9,0.5972828]
[1717876437293,1.62049951,3685.0,3684.7,0.723]
[1717876437495,1.62049951,3685.0,3684.9,0.5972828]
[1717876437711,1.62049951,3685.0,3684.8,0.59734015]
[1717876437915,1.62049951,3685.0,3684.9,0.5972828]
[1717876438220,1.62049951,3685.0,3684.7,0.723]
[1717876438396,1.62049951,3685.0,3684.9,0.5972828]
[1717876438596,1.62049951,3685.0,3684.7,0.723]
[1717876438918,1.62049951,3685.0,3684.8,0.59734015]
[1717876439215,1.62049951,3685.0,3684.7,0.723]
[1717876439429,1.62049951,3685.0,3684.9,0.59725613]
[1717876439578,1.62049951,3685.0,3684.8,0.59731349]
[1717876439781,1.62049951,3685.0,3684.7,0.723]
[1717876440004,1.62049951,3685.0,3684.8,0.59731349]
[1717876440220,1.62049951,3685.0,3684.7,0.723]
[1717876440517,1.62049951,3685.0,3684.9,0.59725613]
[1717876440677,1.62049951,3685.0,3684.8,0.59731349]
[1717876440880,1.62049951,3685.0,3684.9,0.59725613]
[1717876441350,1.62049951,3685.0,3684.7,0.723]
[1717876441483,1.62049951,3685.0,3684.9,0.59725613]
[1717876441990,1.62049951,3685.0,3684.7,0.723]
[1717876442198,1.62049951,3685.0,3684.8,0.59731349]
[1717876442394,1.62049951,3685.0,3684.7,0.723]
[1717876442621,1.62049951,3685.0,3684.8,0.59731349]
[1717876442919,1.62049951,3685.0,3684.7,0.723]
[1717876443125,1.62049951,3685.0,3684.9,0.59725613]
[1717876443334,1.62049951,3685.0,3684.7,0.723]
[1717876443335,1.62049951,3685.0,3684.8,0.59731349]
[1717876443630,1.62049951,3685.0,3684.9,0.59725613]
[1717876443983,1.62049951,3685.0,3684.6,2.4753]
[1717876444185,1.62049951,3685.0,3684.7,0.59737084]
[1717876445317,2.71355,3685.2,3684.7,0.59737084]
[1717876445629,1.62149466,3685.0,3684.7,0.59737084]
[1717876446893,1.62149466,3685.0,3684.5,0.723]
[1717876447098,1.62149466,3685.0,3684.8,0.59735455]
[1717876447525,1.62149466,3685.0,3684.5,0.723]
[1717876447735,1.62149466,3685.0,3684.9,0.5972972]
[1717876447934,1.62149466,3685.0,3684.5,0.723]
[1717876448095,1.62149466,3685.0,3684.9,0.5972972]
[1717876448291,1.62149466,3685.0,3684.5,0.723]
[1717876448495,1.62149466,3685.0,3684.9,0.5972972]
[1717876448926,1.62149466,3685.0,3684.5,0.723]
[1717876449130,1.62149466,3685.0,3684.9,0.5972972]
[1717876449597,1.62149466,3685.0,3684.5,0.723]
[1717876449798,1.62149466,3685.0,3684.6,0.59746926]
[1717876450460,1.62149466,3685.0,3684.7,0.59741191]
[1717876450747,1.62149466,3685.0,3684.5,0.723]
[1717876450897,1.62149466,3685.0,3684.8,0.59735455]
[1717876451093,1.62149466,3685.0,3684.5,0.723]
[1717876451297,1.62149466,3685.0,3684.9,0.5972972]
[1717876452048,1.62149466,3685.0,3684.5,0.723]
[1717876452199,1.62149466,3685.0,3684.9,0.5972972]
[1717876452400,1.62101902,3685.0,3684.5,0.723]
[1717876452630,1.62101902,3685.0,3684.6,0.59746926]
[1717876453122,1.62101902,3685.0,3684.5,1.309684]
[1717876453432,1.62101902,3685.0,3684.6,0.59746926]
[1717876453630,1.62101902,3685.0,3684.5,1.309684]
[1717876453954,1.62101902,3685.0,3684.7,0.59741191]
[1717876454279,1.62101902,3685.0,3684.8,0.59735455]
[1717876454617,1.62101902,3685.0,3684.5,0.723]
[1717876454818,1.62101902,3685.0,3684.6,0.59746926]
[1717876455057,1.62101902,3685.0,3684.5,1.309684]
[1717876455373,1.62101902,3685.0,3684.7,0.59741191]
[1717876455576,1.62101902,3685.0,3684.6,0.59746926]
[1717876455720,1.62101902,3685.0,3684.8,0.59735455]
[1717876456069,1.62101902,3685.0,3684.9,0.5972972]
[1717876456274,1.62101902,3685.0,3684.5,0.723]
[1717876456437,1.62101902,3685.0,3684.9,0.5972972]
[1717876456626,1.62101902,3685.0,3684.5,0.723]
[1717876456828,1.62101902,3685.0,3684.6,0.59746926]
[1717876457173,1.62101902,3685.0,3684.5,0.723]
[1717876457317,1.62101902,3685.0,3684.7,0.59741191]
[1717876457517,1.62101902,3685.0,3684.6,0.59746926]
[1717876457713,1.62101902,3685.0,3684.5,0.723]
[1717876457975,1.62101902,3685.0,3684.7,0.59741191]
[1717876458159,1.62101902,3685.0,3684.6,0.59746926]
[1717876458458,1.62101902,3685.0,3684.7,0.59741191]
[1717876458667,1.62101902,3685.0,3684.5,0.723]
[1717876458824,1.62101902,3685.0,3684.8,0.59735455]
[1717876459027,1.62101902,3685.0,3684.5,0.723]
[1717876459241,1.62101902,3685.0,3684.9,0.5972972]
[1717876459474,1.62101902,3685.0,3684.5,0.723]
[1717876459623,1.62101902,3685.0,3684.9,0.5972972]
[1717876459939,1.62101902,3685.0,3684.5,0.723]
[1717876460581,1.62101902,3685.0,3684.6,0.59746926]
[1717876461064,1.62101902,3685.0,3684.7,0.59741191]
[1717876461396,1.62101902,3685.0,3684.5,0.723]
[1717876461590,1.62101902,3685.0,3684.8,0.59735455]
[1717876461726,1.62101902,3685.0,3684.5,0.723]
[1717876461923,1.62101902,3685.0,3684.9,0.59725613]
[1717876462128,1.62101902,3685.0,3684.5,0.723]
[1717876462587,1.62101902,3685.0,3684.6,0.5974282]
[1717876462868,1.62101902,3685.0,3684.5,0.723]
[1717876463089,1.62101902,3685.0,3684.7,0.59737084]
[1717876463226,1.62101902,3685.0,3684.5,0.723]
[1717876463423,1.62101902,3685.0,3684.8,0.59731349]
[1717876463667,1.62101902,3685.0,3684.5,0.723]
[1717876463978,1.62101902,3685.0,3684.9,0.59725613]
[1717876464184,1.62101902,3685.0,3684.5,0.723]
[1717876464387,1.62101902,3685.0,3684.9,0.59725613]
[1717876464980,1.62101902,3685.0,3684.5,0.723]
[1717876465586,1.62101902,3685.0,3684.6,0.5974282]
[1717876466079,1.62101902,3685.0,3684.7,0.59737084]
[1717876466396,1.62101902,3685.0,3684.5,0.723]
[1717876466562,1.62101902,3685.0,3684.8,0.59731349]
[1717876466728,1.62101902,3685.0,3684.5,0.723]
[1717876466926,1.62101902,3685.0,3684.9,0.59725613]
[1717876467128,1.62101902,3685.0,3684.5,0.723]
[1717876467360,1.62101902,3685.0,3684.9,0.59725613]
[1717876467563,1.62101902,3685.0,3684.5,0.723]
[1717876467761,1.62101902,3685.0,3684.9,0.59725613]
[1717876467963,1.62101902,3685.0,3684.5,0.723]
[1717876468166,1.62101902,3685.0,3684.9,0.59725613]
[1717876468476,1.62124004,3685.0,3684.9,0.59725613]
[1717876468631,1.62124004,3685.0,3684.5,0.723]
[1717876468833,1.62124004,3685.0,3684.6,0.5974282]
[1717876469060,1.62124004,3685.0,3684.5,1.309684]
[1717876469257,1.62124004,3685.0,3684.7,0.59737084]
[1717876469469,1.62124004,3685.0,3684.6,0.5974282]
[1717876469763,1.62124004,3685.0,3684.5,0.723]
[1717876469934,1.62124004,3685.0,3684.7,0.59737084]
[1717876470267,1.62124004,3685.0,3684.8,0.59731349]
[1717876470565,1.62124004,3685.0,3684.5,0.723]
[1717876471062,1.62124004,3685.0,3684.6,0.5974282]
[1717876471264,1.62124004,3685.0,3684.5,0.723]
[1717876471471,1.62124004,3685.0,3684.7,0.59737084]
[1717876471669,1.62124004,3685.0,3684.5,0.723]
[1717876471967,1.62124004,3685.0,3684.8,0.59730935]
[1717876472265,1.62124004,3685.0,3684.9,0.597252]
[1717876473133,1.62124004,3685.0,3684.5,0.723]
[1717876473334,1.62124004,3685.0,3684.9,0.597252]
[1717876473535,1.62124004,3685.0,3684.5,0.723]
[1717876473765,1.62124004,3685.0,3684.9,0.597252]
[1717876474253,1.62124004,3685.0,3684.5,0.723]
[1717876474960,1.62124004,3685.0,3684.6,0.59742406]
[1717876475336,1.62124004,3685.0,3684.5,0.723]
[1717876475654,1.62132687,3685.0,3684.6,0.59742406]
[1717876475852,1.62132687,3685.0,3684.5,0.723]
[1717876476074,1.62132687,3685.0,3684.6,0.59742406]
[1717876476703,1.62132687,3685.0,3684.5,0.723]
[1717876479400,1.70225871,3685.1,3684.5,0.723]
[1717876479554,1.62122215,3685.0,3684.5,0.723]
[1717876479754,1.62122215,3685.0,3684.4,2.4296]
[1717876479958,1.62122215,3685.0,3684.5,0.723]
[1717876483097,2.423,3685.1,3684.5,0.723]
[1717876483299,1.62102829,3685.0,3684.5,0.723]
[1717876483654,1.62102829,3685.0,3684.6,0.59742406]
[1717876483855,1.62102829,3685.0,3684.5,0.723]
[1717876484054,1.62102829,3685.0,3684.6,0.59742406]
[1717876484310,1.62102829,3685.0,3684.5,0.723]
[1717876484599,1.62102829,3685.0,3684.7,0.59736671]
[1717876484790,1.62102829,3685.0,3684.6,0.59742406]
[1717876484985,1.62102829,3685.0,3684.8,0.59730935]
[1717876485295,1.62102829,3685.0,3684.9,0.597252]
[1717876485659,1.62102829,3685.0,3684.5,0.723]
[1717876485860,1.62102829,3685.0,3684.6,0.59742406]
[1717876486083,1.62102829,3685.0,3684.5,0.723]
[1717876486290,1.62102829,3685.0,3684.7,0.59736671]
[1717876486528,1.62102829,3685.0,3684.6,0.59742406]
[1717876486710,1.62102829,3685.0,3684.8,0.59732579]
[1717876486999,1.62102829,3685.0,3684.7,0.59738314]
[1717876487170,1.62102829,3685.0,3684.9,0.59726843]
[1717876487360,1.62102829,3685.0,3684.8,0.59732579]
[1717876487559,1.62102829,3685.0,3684.9,0.59726843]
[1717876487963,1.62102829,3685.0,3684.5,0.723]
[1717876488164,1.62102829,3685.0,3684.9,0.59726843]